bitfinex/quotes_SOLUSD_20251231
["timestamp","ask_amount","ask_price","bid_price","bid_amount"]
[1767191464037,12.69055755,126.54,126.5,15.12]
[1767191464253,12.69055755,126.54,126.5,0.68]
[1767191464532,0.6,126.53,126.49,0.68]
[1767191464729,12.09055755,126.52,126.49,0.68]
[1767191464937,12.69055755,126.5,126.46,0.68]
[1767191465109,12.69055755,126.5,126.46,15.12]
[1767191465110,12.09055755,126.49,126.46,15.12]
[1767191465308,12.69055755,126.5,126.46,15.12]
[1767191465934,8.50326657,126.53,126.49,0.68]
[1767191466240,143.27647026,126.55,126.49,0.68]
[1767191466241,5.89763808,126.52,126.5,0.68]
[1767191466437,103.03672467,126.55,126.5,0.68]
[1767191466438,110.93879324,126.55,126.5,0.68]
[1767191466741,17.98764892,126.54,126.5,0.68]
[1767191466919,12.09055755,126.54,126.5,0.68]
[1767191467121,12.09055755,126.54,126.51,0.68]
[1767191467318,115.12728222,126.55,126.51,0.68]
[1767191467519,17.98815465,126.54,126.51,0.68]
[1767191467736,12.09055755,126.53,126.51,0.68]
[1767191468050,12.09055755,126.54,126.51,0.68]
[1767191468446,0.2,126.57,126.5,14.44]
[1767191468742,0.2,126.57,126.54,12.77055755]
[1767191469059,0.2,126.57,126.54,12.09055755]
[1767191469242,0.2,126.57,126.53,14.44]
[1767191469243,0.6,126.61,126.56,0.68]
[1767191469442,17.98716816,126.6,126.56,12.77055755]
[1767191469634,12.09055755,126.6,126.56,0.68]
[1767191469839,12.78055755,126.6,126.56,0.68]
[1767191470221,12.78055755,126.59,126.51,27.6657537]
[1767191470429,12.09055755,126.58,126.54,12.77055755]
[1767191470626,0.69,126.59,126.55,0.68]
[1767191470826,12.78055755,126.59,126.55,12.77055755]
[1767191471323,12.09055755,126.59,126.55,12.77055755]
[1767191471540,12.78055755,126.6,126.56,0.68]
[1767191472045,12.78055755,126.6,126.56,12.77055755]
[1767191472344,12.78055755,126.6,126.56,0.68]
[1767191472529,7.43127138,126.59,126.56,0.68]
[1767191472853,8.12127138,126.6,126.56,8.11127138]
[1767191473266,7.43127138,126.59,126.56,0.68]
[1767191473836,0.69,126.59,126.51,0.68]
[1767191474034,7.43127138,126.55,126.52,0.68]
[1767191474340,7.43127138,126.54,126.52,0.68]
[1767191474538,7.43127138,126.54,126.51,0.68]
[1767191474939,0.69,126.51,126.46,0.68]
[1767191475156,7.43127138,126.49,126.46,15.12]
[1767191475360,0.69,126.51,126.47,7.43127138]
[1767191475361,7.43127138,126.51,126.47,7.43127138]
[1767191475540,7.43127138,126.51,126.48,0.68]
[1767191475745,7.43127138,126.52,126.48,0.68]
[1767191476262,7.43127138,126.51,126.48,0.68]
[1767191476942,8.59370393,126.53,126.48,0.68]
[1767191477248,7.43127138,126.51,126.48,0.68]
[1767191478458,8.59370393,126.53,126.48,0.68]
[1767191478650,7.43127138,126.51,126.48,0.68]
[1767191478859,7.43127138,126.55,126.5,7.43127138]
[1767191479037,7.43127138,126.56,126.52,0.71]
[1767191479241,7.43127138,126.55,126.52,0.71]
[1767191479547,7.43127138,126.55,126.51,0.71]
[1767191480463,7.43127138,126.54,126.51,0.71]
[1767191481277,7.43127138,126.54,126.46,19.7683092]
[1767191481454,7.43127138,126.51,126.47,7.43127138]
[1767191481668,7.43127138,126.51,126.46,7.90749237]
[1767191481669,7.43127138,126.51,126.48,0.67]
[1767191482250,7.43127138,126.54,126.51,0.67]
[1767191482548,15.33296111,126.56,126.52,0.67]
[1767191482763,7.43127138,126.56,126.52,0.67]
[1767191482960,15.33276854,126.56,126.52,0.67]
[1767191483143,7.43127138,126.55,126.52,0.67]
[1767191484369,7.43127138,126.55,126.51,21.87127138]
[1767191484677,0.66,126.56,126.52,0.67]
[1767191484871,15.33240178,126.57,126.52,8.10127138]
[1767191485173,7.43127138,126.56,126.52,8.10127138]
[1767191485364,8.35013837,126.59,126.54,0.67]
[1767191485679,0.66,126.59,126.55,8.10127138]
[1767191485845,7.43127138,126.58,126.55,0.67]
[1767191486044,7.43127138,126.57,126.53,21.87127138]
[1767191486354,7.43127138,126.55,126.52,0.67]
[1767191486652,0.66,126.57,126.52,22.54127138]
[1767191486653,15.33268152,126.56,126.52,22.54127138]
[1767191487183,7.90100722,126.57,126.53,8.10127138]
[1767191487349,15.3322786,126.57,126.53,0.67]
[1767191487545,7.43127138,126.56,126.53,0.67]
[1767191487748,7.43127138,126.55,126.52,14.44]
[1767191488178,7.43127138,126.55,126.52,15.11]
[1767191488390,7.43127138,126.56,126.52,22.54127138]
[1767191488891,15.9922786,126.57,126.53,8.10127138]
[1767191489392,7.43127138,126.56,126.53,0.67]
[1767191489971,7.43127138,126.55,126.51,0.67]
[1767191490170,7.43127138,126.54,126.5,30.44634673]
[1767191490495,7.43127138,126.54,126.51,0.67]
[1767191490868,8.09127138,126.55,126.51,0.67]
[1767191491070,7.43127138,126.54,126.51,0.67]
[1767191491586,7.43127138,126.53,126.49,21.87127138]
[1767191491893,7.43127138,126.54,126.5,0.67]
[1767191492600,0.66,126.5,126.45,0.67]
[1767191492792,7.43127138,126.48,126.45,0.67]
[1767191493101,7.43127138,126.47,126.39,0.67]
[1767191493286,0.66,126.48,126.42,0.67]
[1767191493480,7.43127138,126.46,126.43,0.67]
[1767191494092,7.43127138,126.46,126.41,15.34188868]
[1767191494093,7.43127138,126.45,126.38,19.88077298]
[1767191494277,0.66,126.46,126.41,0.67]
[1767191494472,7.43127138,126.46,126.43,0.67]
[1767191494695,7.43127138,126.47,126.43,0.67]
[1767191495303,7.43127138,126.45,126.41,0.67]
[1767191495502,7.43127138,126.45,126.41,15.11]
[1767191496009,7.43127138,126.44,126.41,0.67]
[1767191496181,7.43127138,126.44,126.39,7.91187684]
[1767191496182,7.43127138,126.43,126.39,21.87127138]
[1767191496378,7.43127138,126.43,126.4,0.67]
[1767191497183,8.09127138,126.42,126.38,8.20127138]
[1767191497383,8.09127138,126.42,126.38,0.1]
[1767191497384,7.43127138,126.41,126.38,0.1]
[1767191497597,8.09127138,126.42,126.38,0.77]
[1767191497908,8.09127138,126.42,126.38,8.20127138]
[1767191498314,7.43127138,126.42,126.38,8.20127138]
[1767191498498,8.5699341,126.43,126.38,8.20127138]
[1767191498697,16.00120548,126.43,126.38,7.53127138]
[1767191498911,8.5699341,126.43,126.38,0.77]
[1767191499211,7.43127138,126.42,126.38,8.20127138]
[1767191500130,7.43127138,126.39,126.38,0.1]
[1767191500411,7.43127138,126.39,126.35,15.11]
[1767191500615,0.66,126.4,126.35,21.87127138]
[1767191500818,8.09127138,126.4,126.36,0.67]
[1767191501205,7.43127138,126.41,126.37,8.10127138]
[1767191501388,0.66,126.42,126.36,7.91378557]
[1767191501389,8.09127138,126.42,126.38,7.43127138]
[1767191501715,8.09127138,126.42,126.38,8.10127138]
[1767191502016,8.09127138,126.42,126.37,7.9131732]
[1767191502017,8.57271872,126.38,126.33,0.77]
[1767191502196,7.43127138,126.38,126.34,8.10127138]
[1767191502391,7.43127138,126.37,126.33,0.1]
[1767191502597,0.66,126.38,126.33,0.1]
[1767191502598,7.43127138,126.36,126.33,0.1]
[1767191502959,7.43127138,126.37,126.33,0.77]
[1767191503609,7.43127138,126.36,126.33,0.77]
[1767191503927,27.69264299,126.39,126.34,8.10127138]
[1767191503928,8.09127138,126.39,126.34,8.10127138]
[1767191504127,8.09127138,126.39,126.34,16.0162274]
[1767191504306,7.43127138,126.38,126.34,8.10127138]
[1767191504906,7.43127138,126.38,126.34,0.67]
[1767191505102,8.09127138,126.37,126.33,0.1]
[1767191505316,7.43127138,126.36,126.33,14.54]
[1767191505832,0.66,126.37,126.33,14.54]
[1767191506020,8.09127138,126.37,126.33,14.54]
[1767191506621,7.91221594,126.39,126.33,29.88704062]
[1767191506936,7.43127138,126.37,126.33,22.64127138]
[1767191507136,7.43127138,126.36,126.33,0.1]
[1767191507434,0.66,126.35,126.3,0.67]
[1767191507647,8.09127138,126.35,126.3,8.10127138]
[1767191507943,7.43127138,126.34,126.3,0.67]
[1767191508452,7.43127138,126.31,126.29,0.1]
[1767191508945,8.03127138,126.32,126.28,0.67]
[1767191509147,7.43127138,126.31,126.27,7.43127138]
[1767191509347,7.43127138,126.33,126.29,7.43127138]
[1767191509649,0.66,126.34,126.29,7.91816659]
[1767191509858,7.43127138,126.33,126.29,15.34943797]
[1767191510143,0.66,126.34,126.27,19.79848268]
[1767191510366,8.09127138,126.34,126.3,7.43127138]
[1767191510663,102.43672467,126.44,126.29,7.43127138]
[1767191510664,7.43127138,126.33,126.29,7.43127138]
[1767191510945,7.43127138,126.31,126.27,14.46]
[1767191511153,0.7,126.32,126.26,23.14539476]
[1767191511324,7.43127138,126.31,126.26,30.17412338]
[1767191511524,7.43127138,126.31,126.27,0.66]
[1767191512044,14.46,126.34,126.26,15.05412338]
[1767191512244,7.43127138,126.3,126.26,7.13413708]
[1767191512449,8.13127138,126.3,126.23,19.90426873]
[1767191512750,7.91640278,126.32,126.23,0.1]
[1767191512751,0.7,126.28,126.23,0.1]
[1767191512953,0.7,126.28,126.24,7.43127138]
[1767191513247,27.70740974,126.32,126.27,7.43127138]
[1767191513248,8.13127138,126.31,126.27,7.43127138]
[1767191513432,22.37640278,126.32,126.25,7.43127138]
[1767191513634,8.13127138,126.28,126.23,8.02182195]
[1767191513828,0.7,126.28,126.23,7.53127138]
[1767191514035,0.7,126.28,126.25,15.35201385]
[1767191514238,0.7,126.28,126.24,0.66]
[1767191514446,16.0502355,126.28,126.23,7.53127138]
[1767191514756,0.7,126.3,126.24,0.66]
[1767191514948,0.7,126.29,126.26,7.43127138]
[1767191515152,8.13127138,126.29,126.24,8.58128335]
[1767191515348,0.7,126.27,126.23,0.1]
[1767191515662,0.7,126.27,126.23,15.22]
[1767191515834,0.7,126.27,126.23,23.14193823]
[1767191516036,0.7,126.27,126.24,7.92121788]
[1767191516234,7.91770355,126.3,126.25,7.43127138]
[1767191516455,8.13127138,126.29,126.25,7.43127138]
[1767191516834,0.7,126.29,126.25,8.09127138]
[1767191517357,103.13672467,126.31,126.28,7.43127138]
[1767191517560,0.7,126.31,126.27,0.66]
[1767191517886,8.13127138,126.33,126.28,7.43127138]
[1767191518062,8.13127138,126.32,126.28,7.43127138]
[1767191518253,16.04771894,126.32,126.27,22.55127138]
[1767191518558,8.13127138,126.31,126.27,0.66]
[1767191518859,7.43127138,126.32,126.28,7.43127138]
[1767191519166,0.7,126.32,126.28,7.43127138]
[1767191519538,8.13127138,126.32,126.28,7.43127138]
[1767191519740,8.13127138,126.32,126.27,8.57952086]
[1767191519956,0.7,126.32,126.27,16.01079224]
[1767191520142,0.7,126.32,126.27,8.57952086]
[1767191520143,8.13127138,126.32,126.27,8.57952086]
[1767191520343,7.91535582,126.34,126.29,7.43127138]
[1767191520556,8.13127138,126.33,126.28,8.09127138]
[1767191520758,125.24686304,126.35,126.27,27.7183646]
[1767191520759,110.56799605,126.35,126.31,8.09127138]
[1767191520949,8.13127138,126.34,126.29,15.12]
[1767191521143,8.13127138,126.34,126.3,7.43127138]
[1767191521144,0.7,126.34,126.3,7.43127138]
[1767191521339,0.7,126.34,126.3,8.09127138]
[1767191521540,0.7,126.34,126.31,7.43127138]
[1767191521758,0.7,126.36,126.32,7.43127138]
[1767191522157,0.7,126.38,126.35,7.43127138]
[1767191522347,8.13127138,126.4,126.35,7.91452314]
[1767191522663,0.7,126.39,126.35,7.91452314]
[1767191522878,39.54632701,126.44,126.38,8.09127138]
[1767191522879,8.13127138,126.43,126.38,8.09127138]
[1767191523038,0.7,126.42,126.39,7.43127138]
[1767191523359,0.7,126.42,126.38,0.66]
[1767191523563,0.7,126.42,126.38,8.09127138]
[1767191524266,0.7,126.42,126.39,7.43127138]
[1767191524444,8.13127138,126.42,126.38,0.66]
[1767191524766,8.13127138,126.42,126.38,8.09127138]
[1767191525143,0.7,126.42,126.38,7.43127138]
[1767191525462,0.7,126.42,126.39,7.43127138]
[1767191525838,8.13127138,126.42,126.38,7.43127138]
[1767191526258,0.7,126.41,126.37,7.91312363]
[1767191526456,14.46,126.44,126.39,7.43127138]
[1767191526457,0.7,126.42,126.39,7.43127138]
[1767191526664,0.7,126.42,126.38,7.43127138]
[1767191526860,0.7,126.42,126.37,15.34439501]
[1767191526861,8.13127138,126.42,126.37,15.34439501]
[1767191527252,0.7,126.42,126.38,7.43127138]
[1767191527450,8.13127138,126.42,126.37,8.22312363]
[1767191527640,8.13127138,126.42,126.36,14.46]
[1767191527641,0.7,126.4,126.36,21.89127138]
[1767191527962,0.7,126.4,126.37,7.43127138]
[1767191528958,0.7,126.4,126.36,22.20127138]
[1767191529157,8.13127138,126.4,126.36,22.20127138]
[1767191529358,0.7,126.4,126.36,7.43127138]
[1767191529567,0.7,126.39,126.35,7.43127138]
[1767191529757,0.7,126.38,126.35,7.43127138]
[1767191529952,116.89672467,126.42,126.36,7.43127138]
[1767191530156,116.89672467,126.42,126.37,0.31]
[1767191530157,103.13672467,126.42,126.37,0.31]
[1767191530356,103.13672467,126.42,126.39,7.43127138]
[1767191530959,0.7,126.41,126.38,7.43127138]
[1767191531172,0.7,126.41,126.39,7.43127138]
[1767191532452,19.77113944,126.45,126.4,7.43127138]
[1767191532453,0.7,126.45,126.4,7.43127138]
[1767191532772,0.7,126.46,126.43,7.43127138]
[1767191532944,8.13127138,126.45,126.39,14.77]
[1767191533149,0.7,126.44,126.41,7.43127138]
[1767191533552,0.7,126.46,126.43,7.43127138]
[1767191533969,7.43127138,126.47,126.41,0.31]
[1767191533970,0.7,126.44,126.41,7.43127138]
[1767191534364,0.7,126.44,126.4,7.43127138]
[1767191534580,0.7,126.44,126.39,8.22175316]
[1767191534581,12.80480579,126.44,126.39,8.22175316]
[1767191534758,0.7,126.43,126.39,14.77]
[1767191534959,12.80480579,126.43,126.33,39.57838051]
[1767191535254,12.80480579,126.43,126.38,7.91226814]
[1767191535457,12.80480579,126.43,126.39,20.01669025]
[1767191535779,12.80480579,126.42,126.38,26.56480579]
[1767191535977,0.7,126.42,126.38,26.56480579]
[1767191536172,0.7,126.42,126.38,34.47739574]
[1767191536565,0.7,126.42,126.39,12.10480579]
[1767191536770,0.7,126.44,126.4,12.10480579]
[1767191537077,129.70153046,126.47,126.43,12.10480579]
[1767191537274,0.7,126.47,126.43,12.10480579]
[1767191537487,20.01130265,126.48,126.43,12.10480579]
[1767191537685,12.10480579,126.47,126.43,12.41480579]
[1767191537983,42.57354922,126.5,126.45,12.10480579]
[1767191537984,12.80480579,126.5,126.45,12.10480579]
[1767191538188,0.7,126.5,126.45,12.10480579]
[1767191538366,0.7,126.48,126.44,12.10480579]
[1767191538562,12.81480579,126.47,126.43,12.10480579]
[1767191539678,12.81480579,126.47,126.42,22.37013175]
[1767191539679,12.81480579,126.46,126.41,8.22050815]
[1767191539878,12.10480579,126.45,126.41,14.77]
[1767191540086,0.71,126.46,126.43,12.10480579]
[1767191540413,0.71,126.46,126.41,14.77]
[1767191540590,7.9065831,126.48,126.44,12.10480579]
[1767191540767,20.01138889,126.48,126.43,12.41480579]
[1767191541084,19.76386608,126.5,126.4,19.77794783]
[1767191541085,12.82480579,126.5,126.46,12.10480579]
[1767191541272,0.72,126.49,126.46,12.10480579]
[1767191541468,0.72,126.53,126.48,12.10480579]
[1767191541661,0.72,126.53,126.44,42.14103009]
[1767191541662,0.72,126.53,126.5,12.10480579]
[1767191541865,0.72,126.53,126.47,14.46]
[1767191542063,7.90228532,126.55,126.5,12.41480579]
[1767191542064,20.00709111,126.55,126.5,12.41480579]
[1767191542370,0.72,126.54,126.49,12.10480579]
[1767191542573,12.10480579,126.53,126.49,12.10480579]
[1767191542988,12.10480579,126.52,126.48,0.31]
[1767191543192,7.9032869,126.53,126.47,12.41480579]
[1767191543491,12.82480579,126.53,126.49,12.10480579]
[1767191543876,0.72,126.53,126.49,12.10480579]
[1767191545416,35.18699051,126.55,126.49,7.90574094]
[1767191545610,0.72,126.54,126.51,12.10480579]
[1767191545808,0.72,126.58,126.52,12.10480579]
[1767191546018,14.64,126.59,126.51,12.10480579]
[1767191546019,0.72,126.55,126.51,12.10480579]
[1767191546195,0.72,126.51,126.42,0.31]
[1767191546506,26.54480579,126.56,126.45,7.90807254]
[1767191546507,12.10480579,126.49,126.45,7.90807254]
[1767191546705,12.10480579,126.48,126.44,20.32360639]
[1767191546895,12.10480579,126.48,126.44,22.3488006]
[1767191547076,0.72,126.53,126.43,7.90938459]
[1767191547285,12.10480579,126.47,126.43,14.44]
[1767191547498,0.72,126.48,126.43,34.76376103]
[1767191547678,0.72,126.48,126.44,12.10480579]
[1767191548077,12.82480579,126.48,126.44,12.10480579]
[1767191548889,12.82480579,126.48,126.43,22.65895524]
[1767191549197,0.72,126.5,126.44,12.41480579]
[1767191549408,12.10480579,126.49,126.44,20.32342379]
[1767191549614,12.82480579,126.49,126.44,20.32342379]
[1767191549931,12.10480579,126.48,126.42,0.31]
[1767191550086,12.82480579,126.47,126.42,34.76458451]
[1767191550285,0.72,126.47,126.43,7.90925909]
[1767191550488,12.10480579,126.47,126.43,12.10480579]
[1767191550711,12.10480579,126.48,126.43,12.10480579]
[1767191551218,12.82480579,126.48,126.44,7.90878485]
[1767191551426,12.10480579,126.47,126.43,20.32402985]
[1767191552038,12.82480579,126.48,126.43,20.32402985]
[1767191553008,12.10480579,126.47,126.43,20.32402985]
[1767191554510,12.10480579,126.47,126.43,34.76402985]
[1767191556830,0.72,126.48,126.43,34.76402985]
[1767191557137,12.10480579,126.47,126.43,20.32402985]
[1767191557342,12.10480579,126.47,126.43,34.76402985]
[1767191558640,12.82480579,126.46,126.43,14.44]
[1767191558846,12.82480579,126.46,126.42,7.90997764]
[1767191559024,12.82480579,126.46,126.42,22.34997764]
[1767191559231,12.10480579,126.44,126.4,19.77738106]
[1767191559418,12.10480579,126.43,126.4,22.35088916]
[1767191559617,12.82480579,126.44,126.4,22.35088916]
[1767191559946,12.10480579,126.43,126.36,19.78369571]
[1767191560125,12.82480579,126.42,126.38,7.91231317]
[1767191560327,0.72,126.47,126.42,0.31]
[1767191560555,0.72,126.49,126.44,12.10480579]
[1767191560725,12.82480579,126.49,126.44,12.10480579]
[1767191561248,12.82480579,126.49,126.44,7.90879547]
[1767191561542,0.72,126.48,126.44,20.01360126]
[1767191561752,7.90556094,126.5,126.45,12.10480579]
[1767191561753,0.72,126.5,126.45,12.10480579]
[1767191561917,136.6375979,126.52,126.48,12.10480579]
[1767191561918,0.72,126.52,126.48,12.10480579]
[1767191562323,12.82480579,126.52,126.48,12.10480579]
[1767191562537,12.82480579,126.52,126.47,12.10480579]
[1767191562712,12.10480579,126.52,126.48,0.31]
[1767191563322,12.10480579,126.51,126.48,0.31]
[1767191563512,14.44,126.55,126.5,0.31]
[1767191563741,12.82480579,126.54,126.5,12.10480579]
[1767191564533,12.10480579,126.54,126.5,12.41480579]
[1767191564736,12.10480579,126.52,126.48,12.41480579]
[1767191564932,0.72,126.51,126.48,20.01116363]
[1767191565613,12.82480579,126.51,126.47,34.45158278]
[1767191566137,0.72,126.53,126.5,12.10480579]
[1767191566309,0.72,126.55,126.51,12.10480579]
[1767191566628,12.82480579,126.55,126.51,12.10480579]
[1767191567111,12.10480579,126.54,126.5,26.54480579]
[1767191567314,12.82480579,126.54,126.5,7.90490503]
[1767191567624,0.72,126.54,126.5,20.00971082]
[1767191569615,0.72,126.54,126.5,7.90490503]
[1767191569825,12.10480579,126.54,126.5,12.10480579]
[1767191570027,7.90207938,126.55,126.49,20.0102592]
[1767191570028,0.72,126.53,126.49,20.0102592]
[1767191570229,0.72,126.53,126.5,12.10480579]
[1767191571634,0.72,126.53,126.49,22.34545341]
[1767191571834,0.72,126.53,126.5,12.10480579]
[1767191572143,0.72,126.53,126.49,34.4502592]
[1767191572439,12.81480579,126.52,126.5,14.44]
[1767191572822,12.81480579,126.52,126.46,19.76804871]
[1767191572823,0.71,126.5,126.46,0.31]
[1767191573030,7.90264329,126.54,126.47,26.54480579]
[1767191573343,0.71,126.53,126.5,12.10480579]
[1767191574647,0.71,126.53,126.49,7.90575945]
[1767191574843,0.71,126.5,126.46,12.10480579]
[1767191575141,12.81480579,126.47,126.43,12.10480579]
[1767191575345,12.81480579,126.47,126.43,26.54480579]
[1767191575721,12.81480579,126.47,126.43,7.90916287]
[1767191576042,12.10480579,126.46,126.43,22.34916287]
[1767191576850,12.10480579,126.46,126.38,47.91198179]
[1767191576851,0.71,126.46,126.4,0.31]
[1767191577051,12.10480579,126.45,126.41,26.85480579]
[1767191577740,12.10480579,126.45,126.42,7.90982129]
[1767191578742,12.81480579,126.45,126.41,7.91055]
[1767191578963,12.10480579,126.44,126.41,14.44]
[1767191579147,12.10480579,126.44,126.41,22.35074747]
[1767191579454,12.10480579,126.44,126.41,7.91074747]
[1767191579650,12.81480579,126.44,126.36,8.35013837]
[1767191579950,12.81480579,126.41,126.36,0.31]
[1767191580244,12.10480579,126.4,126.36,12.41480579]
[1767191580426,12.10480579,126.4,126.36,22.66363648]
[1767191580623,12.81480579,126.4,126.37,7.9131807]
[1767191581244,12.10480579,126.41,126.37,7.9131807]
[1767191581446,0.71,126.43,126.39,12.10480579]
[1767191581648,0.71,126.43,126.39,14.44]
[1767191581960,12.81480579,126.43,126.39,26.54480579]
[1767191582450,12.10480579,126.43,126.39,34.76652796]
[1767191582959,12.81480579,126.43,126.39,22.35199011]
[1767191583152,12.81480579,126.43,126.39,20.0167959]
[1767191583350,0.71,126.43,126.4,12.10480579]
[1767191583556,0.71,126.43,126.39,22.35199011]
[1767191583848,12.81480579,126.43,126.39,34.4567959]
[1767191584028,12.81480579,126.42,126.38,20.01716392]
[1767191584224,0.71,126.42,126.38,22.35235813]
[1767191584424,12.81480579,126.42,126.38,22.35235813]
[1767191584648,0.71,126.42,126.38,34.45716392]
[1767191584823,19.7696574,126.46,126.39,12.10480579]
[1767191584824,7.90836822,126.45,126.39,12.10480579]
[1767191585024,0.71,126.44,126.4,12.10480579]
[1767191585225,12.81480579,126.44,126.4,12.10480579]
[1767191585476,12.81480579,126.44,126.38,42.44396914]
[1767191585477,12.10480579,126.43,126.38,20.01716392]
[1767191585754,7.90831424,126.45,126.36,7.91371267]
[1767191585755,0.71,126.39,126.36,7.91371267]
[1767191585936,12.10480579,126.37,126.34,7.91492932]
[1767191586125,14.44,126.42,126.35,12.10480579]
[1767191586324,12.81480579,126.4,126.36,12.10480579]
[1767191586752,0.71,126.39,126.35,12.10480579]
[1767191586928,12.81480579,126.39,126.35,12.10480579]
[1767191587122,0.71,126.39,126.36,12.10480579]
[1767191588839,0.71,126.42,126.37,20.01807634]
[1767191589158,0.71,126.42,126.39,12.10480579]
[1767191589364,0.71,126.45,126.39,12.10480579]
[1767191589566,12.81480579,126.44,126.4,12.10480579]
[1767191589751,0.71,126.44,126.41,12.10480579]
[1767191590754,12.10480579,126.44,126.4,22.35108194]
[1767191591062,12.10480579,126.44,126.39,0.31]
[1767191591358,20.01119415,126.48,126.38,34.78714697]
[1767191591359,12.81480579,126.43,126.38,34.78714697]
[1767191591566,0.71,126.41,126.38,22.3723037]
[1767191591754,12.10480579,126.42,126.39,7.91197414]
[1767191591941,12.81480579,126.42,126.39,7.91195678]
[1767191592342,12.81480579,126.4,126.36,20.01870259]
[1767191592576,12.81480579,126.4,126.36,34.47870259]
[1767191593262,0.71,126.4,126.37,12.10480579]
[1767191593466,0.65,126.4,126.36,22.3738968]
[1767191593684,12.10480579,126.37,126.34,7.91505194]
[1767191593842,12.10480579,126.37,126.33,7.9155851]
[1767191594042,14.46,126.41,126.33,7.9155851]
[1767191594265,12.10480579,126.37,126.33,20.02039089]
[1767191594473,12.04480579,126.37,126.34,7.91508094]
[1767191594849,7.91156843,126.4,126.34,7.91508094]
[1767191595061,8.35013837,126.43,126.35,14.83]
[1767191595245,8.35013837,126.43,126.34,7.91508094]
[1767191595246,12.10480579,126.39,126.34,7.91508094]
[1767191595451,12.81480579,126.39,126.35,14.46]
[1767191595651,0.71,126.39,126.36,12.10480579]
[1767191596051,12.10480579,126.42,126.38,12.10480579]
[1767191596272,12.81480579,126.41,126.35,14.83]
[1767191596474,0.71,126.4,126.37,7.45359136]
[1767191596655,0.71,126.4,126.37,7.91320841]
[1767191596967,0.71,126.4,126.37,15.36679977]
[1767191597164,7.45359136,126.4,126.36,7.45359136]
[1767191597368,8.16359136,126.39,126.35,29.8278769]
[1767191597543,0.71,126.37,126.34,7.45359136]
[1767191597870,7.91141544,126.4,126.28,39.59211683]
[1767191597871,0.71,126.35,126.28,39.59211683]
[1767191598053,8.10359136,126.34,126.3,7.91706647]
[1767191598252,8.10359136,126.34,126.27,0.37]
[1767191598253,8.16359136,126.33,126.29,14.46]
[1767191598465,7.45359136,126.32,126.28,29.83214861]
[1767191598666,7.45359136,126.32,126.27,8.28925406]
[1767191598667,8.11359136,126.32,126.27,8.28925406]
[1767191598866,0.66,126.3,126.27,7.91925406]
[1767191599172,0.66,126.28,126.25,8.02075789]
[1767191599472,0.6,126.28,126.25,0.1]
[1767191599671,8.05359136,126.28,126.25,0.1]
[1767191599877,8.05359136,126.28,126.25,8.02070288]
[1767191600175,8.05359136,126.28,126.25,0.1]
[1767191600676,14.46,126.32,126.26,0.43]
[1767191600844,14.46,126.32,126.26,7.45359136]
[1767191601048,7.45359136,126.29,126.25,15.47436942]
[1767191601248,8.12359136,126.29,126.25,7.55359136]
[1767191601775,0.67,126.29,126.26,7.45359136]
[1767191601963,0.67,126.32,126.27,7.45359136]
[1767191602157,14.46,126.35,126.27,7.45359136]
[1767191602158,7.45359136,126.31,126.27,7.45359136]
[1767191602350,8.12359136,126.31,126.27,7.45359136]
[1767191603167,8.12359136,126.31,126.28,7.45359136]
[1767191603168,0.67,126.31,126.28,7.45359136]
[1767191603366,8.12359136,126.31,126.27,7.91942396]
[1767191603572,8.12359136,126.31,126.27,15.37301532]
[1767191603977,8.12359136,126.31,126.27,7.91942396]
[1767191603978,0.67,126.31,126.27,7.91942396]
[1767191604269,0.67,126.3,126.28,7.45359136]
[1767191604472,7.45359136,126.33,126.27,8.34946868]
[1767191604647,7.45359136,126.33,126.29,7.45359136]
[1767191604847,7.45359136,126.32,126.28,15.80218046]
[1767191605052,14.46,126.35,126.3,7.45359136]
[1767191605262,14.46,126.35,126.31,7.45359136]
[1767191605263,0.67,126.34,126.31,7.45359136]
[1767191605559,8.12359136,126.34,126.3,7.45359136]
[1767191605972,7.45359136,126.33,126.3,7.45359136]
[1767191606671,8.12359136,126.34,126.3,7.45359136]
[1767191606977,8.12359136,126.33,126.29,7.9181266]
[1767191607153,0.67,126.29,126.26,7.91967835]